fUSD/lending_fUSD_20241125
["ID","MTS","AMOUNT","RATE_DAILY","PERIOD"]
[343293456,1732547454831,-500.0,0.00044383,30]
[343293457,1732547454840,-500.0,0.00044383,30]
[343293458,1732547454850,-1951.71,0.00044383,30]
[343293459,1732547454859,-500.0,0.00044383,30]
[343293460,1732547454868,-500.0,0.00044383,30]
[343293461,1732547454877,-500.0,0.00044383,30]
[343293462,1732547454886,-500.0,0.00044383,30]
[343293463,1732547454896,-500.0,0.00044383,30]
[343293464,1732547454908,-500.0,0.00044383,30]
[343293465,1732547454918,-541.44,0.00044383,30]
[343293466,1732547454927,-500.0,0.00044383,30]
[343293467,1732547454936,-500.0,0.00044383,30]
[343293468,1732547454945,-500.0,0.00044383,30]
[343293469,1732547454954,-500.0,0.00044383,30]
[343293470,1732547454963,-500.0,0.00044383,30]
[343293471,1732547454972,-257.98,0.00044383,30]
[343293472,1732547454981,-500.0,0.00044383,30]
[343293473,1732547454990,-500.0,0.00044383,30]
[343293474,1732547454999,-2068.80509109,0.00044383,30]
[343293475,1732547455014,-42.58490891,0.00044383,30]
[343293476,1732547455024,-500.0,0.00044383,30]
[343293477,1732547455033,-500.0,0.00044383,30]
[343293478,1732547455042,-500.0,0.00044383,30]
[343293479,1732547455051,-1239.48,0.00044383,30]
[343293480,1732547455060,-500.0,0.00044383,30]
[343293481,1732547455069,-1215.86,0.00044383,30]
[343293482,1732547455078,-522.44848778,0.00044383,30]
[343293483,1732547455088,-531.93,0.00044383,30]
[343293484,1732547455097,-500.0,0.00044383,30]
[343293485,1732547455107,-500.0,0.00044383,30]
[343293486,1732547455119,-1979.63,0.00044383,30]
[343293487,1732547455128,-322.58006741,0.00044383,30]
[343293488,1732547455140,-177.41993259,0.00044383,30]
[343293489,1732547455151,-262.20022581,0.00044383,30]
[343293490,1732547455162,-298.07977419,0.00044383,30]
[343293491,1732547455171,-591.62,0.00044383,30]
[343293492,1732547455180,-500.0,0.00044383,30]
[343293493,1732547455190,-41.01522581,0.00044383,30]
[343293494,1732547455202,-458.98477419,0.00044383,30]
[343293495,1732547455212,-336.52200181,0.00044383,30]
[343293496,1732547455223,-163.47799819,0.00044383,30]
[343293497,1732547455233,-500.0,0.00044383,30]
[343293498,1732547455242,-500.0,0.00044383,30]
[343293499,1732547455251,-687.97,0.00044383,30]
[343293500,1732547455261,-500.0,0.00044383,30]
[343293501,1732547455270,-479.07685543,0.00044383,30]
[343293502,1732547455282,-330.60500016,0.00044383,30]
[343293503,1732547455293,-6716.73814441,0.00044383,30]
[343293504,1732547455302,-295.15,0.00044383,30]
[343293505,1732547455311,-500.0,0.00044383,30]
[343293506,1732547455321,-17.5606094,0.00044383,30]
[343293508,1732547800507,1456.0,0.00033,30]
[343293518,1732548195488,-179.85,0.00029645,2]
[343293519,1732548195510,-162.46,0.00030685,2]
[343293520,1732548195531,-362.9181109,0.00030685,2]
[343293521,1732548195552,-250.0,0.00031,2]
[343293522,1732548204130,-400.0,0.00032999,2]
[343293523,1732548204152,-500.0,0.00033,5]
[343293524,1732548204173,-300.0,0.00033,2]
[343293525,1732548204192,-37844.7718891,0.00033,2]
[343293534,1732548308341,3094.53,0.00013,2]
[343293535,1732548308368,5950668.83733099,0.00013,2]
[343293536,1732548309128,17507.41615625,0.0001,2]
[343293540,1732548325853,600.0,0.000108,2]
[343293541,1732548366142,1040.81745759,0.0003,120]
[343293542,1732548367898,-582.79333559,0.000256,2]
[343293543,1732548367924,-4314.8765096,0.00026,2]
[343293544,1732548367954,-191.77047897,0.000275,2]
[343293545,1732548367986,-3385.78677635,0.00028,2]
[343293546,1732548368014,-150.0,0.00030692,2]
[343293547,1732548368042,-173.9145,0.00031999,2]
[343293548,1732548379035,5709.22665655,0.0003,14]
[343293549,1732548382399,41986.41123287,0.0002361,7]
[343293557,1732548400449,229.39603043,0.0002211,2]
[343293676,1732548415063,158.9,0.00030685,2]
[343293678,1732548430611,16659.01321775,0.000225,2]
[343293679,1732548442682,2454.89874703,0.0001305,2]
[343293680,1732548444800,292.3575,0.00031999,2]
[343293681,1732548446293,158.674,0.00031999,2]
[343293682,1732548467567,3410.29690128,0.0003121,2]
[343293683,1732548468788,20141.68411358,0.00028,4]
[343293684,1732548468816,50770.24897707,0.00028,4]
[343293685,1732548470389,3813.08652943,0.0002,2]
[343293686,1732548474628,-2697.14397182,0.000325,2]
[343293687,1732548474654,-159.2483093,0.00033,2]
[343293688,1732548474679,-169.21463042,0.00033,5]
[343293689,1732548474708,-4001.48268277,0.00034,120]
[343293690,1732548477404,596.72731247,0.00032,5]
[343293691,1732548482658,45416.6644935,0.00013,2]
[343293692,1732548482682,2175541.37862985,0.00013,2]
[343293693,1732548488241,3950.0,0.0002,2]
[343293694,1732548492019,2734.1192058,0.00032,30]
[343293696,1732548500547,999.999999,0.0002,2]
[343293697,1732548511814,30446.4329608,0.0002,5]
[343293737,1732548631752,-958.05,0.0002152,2]
[343293739,1732548631764,-263.372,0.0002152,2]
[343293741,1732548631775,-3260.31123457,0.0002152,2]
[343293743,1732548631784,-1210.30607578,0.00021899,2]
[343293745,1732548631794,-300.0,0.00021999,2]
[343293747,1732548631803,-4538.68269065,0.00022,2]
[343293751,1732548632177,-262.49081375,0.00022,2]
[343293752,1732548632189,-422.046,0.00022,2]
[343293753,1732548632208,-9244.36753,0.00022,2]
[343293754,1732548632223,-2621.17357894,0.00022,2]
[343293755,1732548632232,-420.0,0.00023906,2]
[343293756,1732548632242,-1140.245922,0.00023922,2]
[343293757,1732548632261,-724.24833659,0.00023922,2]
[343293758,1732548632270,-1240.96551506,0.00025,7]
[343293759,1732548632279,-3226.8894262,0.000251,2]
[343293760,1732548632288,-587.0,0.00025977,2]
[343293761,1732548632298,-823.0,0.00028229,2]
[343293762,1732548632307,-1511.28156591,0.0003,2]
[343293763,1732548632317,-1152.0,0.00030675,2]
[343293764,1732548632326,-3222.255494,0.00031,2]
[343293765,1732548632336,-4602.55699094,0.000328,2]
[343293766,1732548632345,-1418.0,0.00033334,2]
[343293767,1732548632355,-543.40267131,0.00034999,2]
[343293768,1732548632374,-456.59732869,0.00034999,2]
[343293769,1732548632384,-350.0,0.00035,2]
[343293770,1732548632393,-1831.259999,0.00035,2]
[343293771,1732548632402,-6051.22782509,0.00035,90]
[343293772,1732548632411,-2000.0,0.00035688,2]
[343293773,1732548632420,-250.0,0.00035714,2]
[343293774,1732548632429,-1600.0,0.00036599,2]
[343293775,1732548632439,-342.0,0.00036599,2]
[343293776,1732548632449,-500.0,0.000366,5]
[343293777,1732548632458,-9999.99,0.000366,2]
[343293778,1732548632475,-9999.99,0.000366,2]
[343293779,1732548632484,-1299.46,0.000366,2]
[343293780,1732548632493,-150.99,0.000366,2]
[343293781,1732548632502,-999.99,0.000366,2]
[343293782,1732548632511,-1000.0,0.00036605,2]
[343293783,1732548632522,-6550.64,0.00036605,2]
[343293784,1732548632531,-1000.0,0.00036606,2]
[343293785,1732548632541,-704.35,0.00036606,2]
[343293786,1732548632550,-400.0,0.00037,2]
[343293787,1732548632560,-3731.30966141,0.00037046,2]
[343293788,1732548632569,-500.0,0.00037056,2]
[343293789,1732548632579,-29999.99,0.00037067,30]
[343293790,1732548632588,-1091.1974072,0.00037148,5]
[343293791,1732548632597,-11350.0,0.00037189,2]
[343293792,1732548632606,-245.38790853,0.000372,103]
[343293793,1732548632615,-678.01898496,0.00037347,2]
[343293794,1732548632624,-250.0,0.00037506,120]
[343293795,1732548632634,-1913.07,0.00037638,2]
[343293796,1732548632643,-182.06991134,0.00037643,2]
[343293797,1732548632655,-23717.93008866,0.00037643,2]
[343293798,1732548632664,-200.0,0.00037643,2]
[343293799,1732548632673,-552.41,0.00037734,120]
[343293800,1732548632682,-1000.0,0.00037796,2]
[343293801,1732548632692,-166.39,0.00037814,2]
[343293802,1732548632701,-996.06,0.00037821,2]
[343293803,1732548632710,-16050.53701132,0.000379,2]
[343293804,1732548633687,-2873.63331825,0.000379,2]
[343293805,1732548633699,-6050.11967767,0.000379,2]
[343293806,1732548633709,-235.8167,0.00038,2]
[343293807,1732548633723,-264.0998,0.00038,2]
[343293808,1732548633732,-309.8175,0.00038,2]
[343293809,1732548633742,-767.5854,0.00038,2]
[343293810,1732548633753,-564.06,0.00038057,3]
[343293811,1732548633763,-6721.32411646,0.00038067,2]
[343293812,1732548633771,-2676.321,0.000381,2]
[343293813,1732548633782,-827.79,0.00038117,2]
[343293814,1732548633792,-165.97,0.00038168,2]
[343293815,1732548633801,-2579.39111971,0.00038246,2]
[343293816,1732548633811,-188.01,0.0003829,3]
[343293817,1732548633821,-20742.38724722,0.000383,3]
[343293818,1732548633830,-169.17,0.00038346,120]
[343293819,1732548633839,-2002.98,0.00038472,2]
[343293820,1732548633849,-10020.43748779,0.00038559,15]
[343293821,1732548633859,-263.03,0.00038987,2]
[343293822,1732548633869,-450.0,0.00039,2]
[343293823,1732548633879,-1278.84,0.00039073,2]
[343293824,1732548633890,-200.0,0.00039086,2]
[343293825,1732548633899,-629.18,0.00039123,2]
[343293826,1732548633909,-2751.0,0.0003918,120]
[343293827,1732548633919,-772.91,0.00039226,2]
[343293828,1732548633929,-2148.19,0.00039245,2]
[343293829,1732548633939,-2579.3911197,0.00039282,2]
[343293830,1732548633951,-1500.0,0.00039413,2]
[343293831,1732548633961,-376.02,0.0003966,3]
[343293832,1732548633975,-300.0,0.00039667,2]
[343293833,1732548633986,-257.55,0.00039688,2]
[343293834,1732548633996,-292.3575,0.00039704,2]
[343293835,1732548634006,-996.06,0.00039712,2]
[343293836,1732548634016,-220.23,0.0003972,2]
[343293837,1732548634027,-150.0,0.00039723,2]
[343293838,1732548634038,-1500.0,0.00039766,2]
[343293839,1732548634048,-23615.1978,0.000398,2]
[343293840,1732548634058,-1500.0,0.00039804,2]
[343293841,1732548634068,-602.3459,0.00039888,7]
[343293842,1732548634078,-152.01116327,0.000399,2]
[343293843,1732548634088,-316.69080685,0.000399,2]
[343293844,1732548634098,-1913.07,0.00039902,2]
[343293864,1732548634332,-500.0,0.00039962,5]
[343293866,1732548634343,-159.28680269,0.00039962,2]
[343293868,1732548634354,-500.0,0.00039962,2]
[343293870,1732548634365,-159.2636501,0.00039973,2]
[343293872,1732548634374,-1000.0,0.00039999,2]
[343293874,1732548634383,-500.0,0.00039999,31]
[343293876,1732548634393,-584.06627751,0.00039999,31]
[343293878,1732548634402,-500.0,0.00039999,31]
[343293879,1732548634411,-500.0,0.00039999,31]
[343293881,1732548634422,-388.29391433,0.00039999,31]
[343293883,1732548634432,-371.84316076,0.00039999,31]
[343293888,1732548634473,-128.15683924,0.00039999,31]
[343293890,1732548634485,-192.10040964,0.00039999,31]
[343293892,1732548634496,-307.89959036,0.00039999,31]
[343293894,1732548634506,-523.16246202,0.00039999,31]
[343293895,1732548634516,-2910.82,0.0004,120]
[343293897,1732548634527,-3723.55,0.0004,120]
[343293899,1732548634536,-1600.0,0.0004,2]
[343293901,1732548634545,-3750.0,0.0004,120]
[343293902,1732548634556,-5000.0,0.0004,120]
[343293903,1732548634566,-570.26341273,0.0004,2]
[343293904,1732548634576,-1131.43,0.0004,2]
[343293905,1732548634586,-4098.07236272,0.0004,30]
[343293906,1732548634599,-2610.43054024,0.0004,30]
[343293907,1732548634611,-321.92423428,0.0004,30]
[343293908,1732548634628,-2455.3006258,0.0004,30]
[343293909,1732548634640,-9501.91458407,0.0004,30]
[343294225,1732548637780,-150.0,0.00025801,2]
[343294227,1732548637790,-325.255,0.00038,2]
[343294230,1732548637802,-1350.0,0.00038,2]
[343294232,1732548637813,-36156.50504913,0.00038,2]
[343294233,1732548637822,-313.31,0.0003999,10]
[343294234,1732548637832,-10993.42228109,0.0004,30]
[343294235,1732548637841,-65.26266978,0.0004,120]
[343294236,1732548637852,-412.65642909,0.0004,120]
[343294237,1732548637863,-275.70059928,0.0004,120]
[343294263,1732548638193,-25.61829916,0.0004,120]
[343294265,1732548638205,-2395.9,0.0004,120]
[343294269,1732548638234,-1519.8872649,0.0004,120]
[343294271,1732548638243,-383.1939151,0.0004,30]
[343294275,1732548638266,-690.6000002,0.0004,30]
[343294277,1732548638278,-6511.62705869,0.0004,30]
[343294279,1732548638289,-19003.8,0.0004,30]
[343294293,1732548638419,-8275.82342818,0.0004,30]
[343294295,1732548638428,-22709.6047405,0.0004,10]
[343294298,1732548638441,-8355.461751,0.0004,10]
[343294300,1732548638452,-475.72525,0.0004,10]
[343294302,1732548638465,-15076.04869785,0.0004,10]
[343294304,1732548638481,-191.93180149,0.0004,30]
[343294306,1732548638491,-278.76772651,0.0004,4]
[343294308,1732548638501,-12982.89717415,0.0004,7]
[343294350,1732548639744,-1657.3232516,0.00034975,2]
[343294351,1732548639753,-1411.19365081,0.0004,7]
[343294352,1732548639767,-611.62,0.0004,7]
[343294353,1732548639779,-4642.07475294,0.0004,7]
[343294354,1732548639806,-636.61187451,0.0004,7]
[343294355,1732548639818,-9641.97391725,0.0004,7]
[343294356,1732548639827,-150.0,0.00040019,7]
[343294357,1732548639836,-163.49637636,0.00040022,5]
[343294358,1732548639846,-159.26082865,0.00040022,2]
[343294359,1732548639855,-159.26242659,0.00040022,2]
[343294360,1732548639864,-2266.78,0.000401,120]
[343294361,1732548639874,-500.21366048,0.000401,5]
[343294362,1732548639883,-250.0,0.00040222,2]
[343294363,1732548639893,-525.71,0.00040247,2]
[343294364,1732548639903,-300.0,0.00040317,2]
[343294365,1732548639912,-2579.3911197,0.00040318,15]
[343294366,1732548639922,-150.0,0.00040347,2]
[343294367,1732548639935,-263.03,0.00040357,2]
[343294368,1732548639945,-150.0,0.0004037,2]
[343294369,1732548639954,-1000.0,0.0004051,2]
[343294370,1732548639964,-316.69080685,0.00040582,2]
[343294371,1732548639981,-1000.0,0.00040598,2]
[343294372,1732548639990,-2237.836,0.00040613,58]
[343294373,1732548640001,-164.548,0.00040613,58]
[343294374,1732548640012,-166.36,0.00040624,2]
[343294375,1732548640022,-150.0,0.00040676,2]
[343294376,1732548640031,-500.0,0.00040853,2]
[343294377,1732548640041,-1000.0,0.00040896,2]
[343294378,1732548640051,-2500.0,0.00040896,2]
[343294379,1732548640060,-431.2682,0.000409,2]
[343294380,1732548640070,-169.17,0.0004093,120]
[343294382,1732548640079,-1309.0559783,0.00040996,16]
[343294384,1732548640088,-2267.0,0.00041,117]
[343294385,1732548640098,-151.0,0.00041,14]
[343294386,1732548640107,-151.0,0.00041,14]
[343294387,1732548640116,-151.0,0.00041,14]
[343294388,1732548640126,-151.0,0.00041,14]
[343294389,1732548640136,-500.0,0.00041,2]
[343294391,1732548640145,-18183.30168582,0.00041,4]
[343294393,1732548640170,-14831.03497299,0.00041,4]
[343294394,1732548640179,-499.999999,0.00041,120]
[343294396,1732548640189,-471.79216007,0.00041,120]
[343294398,1732548640199,-153.81,0.0004107,2]
[343294400,1732548640208,-453.81,0.00041074,2]
[343294402,1732548640225,-20000.0,0.0004108,4]
[343294403,1732548640239,-11375.41511496,0.0004108,2]
[343294405,1732548640251,-337.48330785,0.0004108,2]
[343294406,1732548640262,-2129.4889616,0.0004108,2]
[343294407,1732548640274,-4251.36511533,0.0004108,2]
[343294410,1732548640310,-28523.47409501,0.0004108,2]
[343294413,1732548640334,-490.62,0.0004108,2]
[343294415,1732548640345,-649.609672,0.0004108,2]
[343294418,1732548640368,-351.41946482,0.0004108,2]
[343294421,1732548640379,-355.5982514,0.0004108,2]
[343294423,1732548640390,-8536.16198574,0.0004108,2]
[343294425,1732548640401,-271.80193742,0.0004108,2]
[343294427,1732548640412,-863.91766378,0.0004108,2]
[343294429,1732548640424,-4811.0312024,0.0004108,2]
[343294430,1732548640435,-1914.88,0.0004108,2]
[343294432,1732548640449,-1073.93064274,0.0004108,2]
[343294436,1732548640507,150.0,0.00027,120]
[343294449,1732548642766,-195.881,0.000318,2]
[343294450,1732548642776,-160.79469015,0.00039973,5]
[343294451,1732548642785,-150.0,0.00040317,2]
[343294452,1732548642796,-8040.17288559,0.0004108,2]
[343294453,1732548642827,-950.0,0.0004108,2]
[343294454,1732548642839,-355.708,0.0004108,2]
[343294455,1732548642851,-3325.39003569,0.0004108,2]
[343294456,1732548642863,-47570.50890995,0.0004108,2]
[343294457,1732548642984,-500.0,0.00040318,15]
[343294458,1732548642994,-348.909429,0.0004108,2]
[343294459,1732548643007,-387.87434268,0.0004108,2]
[343294460,1732548643019,-664.77203845,0.0004108,2]
[343294461,1732548644313,-500.0,0.0004037,2]
[343294462,1732548644322,-2691.20237349,0.0004108,2]
[343294463,1732548644358,-5013.85974418,0.0004108,2]
[343294464,1732548644370,-4767.8465874,0.0004108,2]
[343294465,1732548644381,-6405.06855612,0.0004108,2]
[343294466,1732548644392,-5887.0398458,0.0004108,2]
[343294467,1732548644604,-20714.14175709,0.0004108,2]
[343294468,1732548644614,-632.38528036,0.00041095,30]
[343294469,1732548644624,-248.0,0.00041096,2]
[343294470,1732548644634,-173.30845926,0.00041096,2]
[343294471,1732548644644,-150.58,0.00041096,2]
[343294473,1732548644653,-1000.0,0.00041096,3]
[343294475,1732548644663,-1000.0,0.00041096,3]
[343294477,1732548644674,-1000.0,0.00041096,3]
[343294479,1732548644684,-1000.0,0.00041096,3]
[343294481,1732548644694,-1000.0,0.00041096,3]
[343294483,1732548644703,-1000.0,0.00041096,3]
[343294484,1732548644713,-1000.0,0.00041096,3]
[343294486,1732548644725,-1000.0,0.00041096,3]
[343294488,1732548644735,-1000.0,0.00041096,3]
[343294489,1732548644745,-1000.0,0.00041096,3]
[343294491,1732548644754,-1000.0,0.00041096,3]
[343294493,1732548644764,-1000.0,0.00041096,3]
[343294495,1732548644773,-1000.0,0.00041096,3]
[343294497,1732548644783,-1000.0,0.00041096,3]
[343294499,1732548644792,-1000.0,0.00041096,3]
[343294500,1732548644801,-1000.0,0.00041096,3]
[343294502,1732548644810,-1000.0,0.00041096,3]
[343294504,1732548644819,-1000.0,0.00041096,3]
[343294506,1732548644829,-1000.0,0.00041096,3]
[343294508,1732548644839,-1000.0,0.00041096,3]
[343294510,1732548644848,-1000.0,0.00041096,3]
[343294512,1732548644857,-1000.0,0.00041096,3]
[343294514,1732548644867,-1000.0,0.00041096,3]
[343294516,1732548644877,-1000.0,0.00041096,3]
[343294518,1732548644886,-1000.0,0.00041096,3]
[343294520,1732548644895,-1000.0,0.00041096,3]
[343294522,1732548644905,-1000.0,0.00041096,3]
[343294524,1732548644914,-1000.0,0.00041096,3]
[343294525,1732548644924,-1000.0,0.00041096,3]
[343294526,1732548644934,-1000.0,0.00041096,3]
[343294527,1732548644942,-1000.0,0.00041096,3]
[343294528,1732548644952,-1000.0,0.00041096,3]
[343294529,1732548644962,-1000.0,0.00041096,3]
[343294530,1732548644975,-1000.0,0.00041096,3]
[343294531,1732548644985,-1000.0,0.00041096,3]
[343294532,1732548644995,-1000.0,0.00041096,3]
[343294533,1732548645005,-1000.0,0.00041096,3]
[343294534,1732548645016,-1000.0,0.00041096,3]
[343294535,1732548645025,-1000.0,0.00041096,3]
[343294536,1732548645036,-1000.0,0.00041096,3]
[343294537,1732548645046,-1000.0,0.00041096,3]
[343294538,1732548645056,-1000.0,0.00041096,3]
[343294539,1732548645065,-1000.0,0.00041096,3]
[343294540,1732548645075,-580.0,0.00041096,3]
[343294541,1732548645084,-365.21,0.00041096,2]
[343294542,1732548645093,-282.79782143,0.00041096,31]
[343294543,1732548645103,-152.01116323,0.00041105,28]
[343294544,1732548645112,-150.0,0.00041175,2]
[343294545,1732548645122,-156.27,0.00041231,2]
[343294546,1732548645131,-156.27,0.00041249,2]
[343294547,1732548645141,-316.69080685,0.00041264,2]
[343294548,1732548645150,-156.27,0.00041266,2]
[343294549,1732548645160,-1500.0,0.00041281,7]
[343294550,1732548645171,-156.27,0.00041283,2]
[343294551,1732548645180,-156.27,0.000413,2]
[343294552,1732548645190,-156.27,0.00041317,2]
[343294553,1732548645200,-156.27,0.00041334,2]
[343294554,1732548645209,-156.27,0.00041352,2]
[343294555,1732548645219,-2579.3911197,0.00041354,15]
[343294556,1732548645231,-156.27,0.00041369,2]
[343294557,1732548645240,-156.27,0.00041386,2]
[343294558,1732548645250,-156.27,0.00041403,2]
[343294559,1732548645259,-156.27,0.0004142,2]
[343294560,1732548645269,-156.27,0.00041438,2]
[343294561,1732548645278,-1600.0,0.0004148,2]
[343294562,1732548645287,-1131.43,0.0004148,2]
[343294563,1732548645296,-150.0,0.00041481,2]
[343294564,1732548645305,-150.0,0.00041495,2]
[343294565,1732548645314,-8498.27,0.00041519,2]
[343294566,1732548645323,-166.39,0.00041596,2]
[343294567,1732548645333,-996.06,0.00041603,2]
[343294568,1732548645343,-697.89,0.00041605,120]
[343294569,1732548645352,-150.0,0.00041661,2]
[343294570,1732548645362,-964.6037099,0.000419,120]
[343294571,1732548645371,-316.69080685,0.00041946,2]
[343294572,1732548645381,-1120.2311025,0.00041999,60]
[343294573,1732548645391,-2999.0,0.00042,5]
[343294574,1732548645400,-72889.32819005,0.00042,6]
[343294575,1732548645410,-1309.05597829,0.00042023,18]
[343294576,1732548645419,-500.0,0.00042067,10]
[343294577,1732548645428,-243.6367251,0.00042067,10]
[343294578,1732548645438,-1500.0,0.00042121,7]
[343294579,1732548645448,-1913.07,0.00042166,2]
[343294580,1732548645458,-54972.88181566,0.000422,120]
[343294581,1732548645467,-150.0,0.0004226,2]
[343294583,1732548645483,-152.01116323,0.00042311,28]
[343294584,1732548645493,-150.0,0.00042317,2]
[343294585,1732548645503,-37505.69258082,0.00042365,2]
[343294586,1732548645512,-2579.3911197,0.0004239,15]
[343294587,1732548645522,-166.59,0.00042401,2]
[343294588,1732548645531,-552.41,0.0004245,120]
[343294589,1732548645540,-150.0,0.00042514,2]
[343294590,1732548645550,-1000.0,0.0004252,2]
[343294591,1732548645560,-288.67338546,0.00042576,8]
[343294592,1732548645570,-150.0,0.00042604,2]
[343294593,1732548645579,-1000.0,0.00042615,10]
[343294594,1732548645588,-316.69080685,0.00042628,2]
[343294595,1732548645597,-1500.0,0.00042636,7]
[343294598,1732548645606,-150.58,0.00042676,2]
[343294600,1732548645616,-150.0,0.00042804,2]
[343294602,1732548645624,-1500.0,0.00042812,7]
[343294603,1732548645633,-432.22086,0.00042885,7]
[343294605,1732548645643,-1000.0,0.000429,7]
[343294606,1732548645652,-364.0,0.000429,30]
[343294608,1732548645661,-1500.0,0.00042926,7]
[343294610,1732548645670,-285.63335841,0.0004296,2]
[343294611,1732548645682,-1314.36664159,0.0004296,2]
[343294612,1732548645691,-1131.43,0.0004296,2]
[343294613,1732548645699,-500.57154668,0.00042973,10]
[343294614,1732548645708,-167.39066341,0.0004299,120]
[343294615,1732548645717,-153.81,0.0004299,2]
[343294616,1732548645730,-550.0,0.00043,2]
[343294617,1732548645739,-15034.9231789,0.00043,2]
[343294618,1732548645748,-11264.45772938,0.00043,120]
[343294619,1732548645760,-6299.65042092,0.00043,120]
[343294620,1732548645770,-4851.53645826,0.00043,120]
[343294621,1732548645781,-6062.12652508,0.00043,120]
[343294622,1732548645791,-3281.98653394,0.00043,120]
[343294623,1732548646123,-500.0,0.00040598,2]
[343294624,1732548646133,-24.920115,0.00043,120]
[343294625,1732548646152,-29238.49999999,0.00043,120]
[343294626,1732548646164,-2984.44017212,0.00043,120]
[343294627,1732548646184,-69352.41079421,0.00043,120]
[343294628,1732548646195,-1259.0288221,0.00043,120]
[343294629,1732548646206,-775.36802019,0.00043,120]
[343294630,1732548646217,-20770.25843682,0.00043,120]
[343294631,1732548646233,-10714.47,0.00043,120]
[343294632,1732548646356,-5987.83196857,0.00043,120]
[343294633,1732548646371,-1211.68099965,0.00043,120]
[343294634,1732548646382,-1424.82,0.00043,120]
[343294635,1732548646394,-954.99874514,0.00043,120]
[343294636,1732548646416,-500.0,0.00040613,58]
[343294637,1732548646426,-1467.98268282,0.00043,120]
[343294638,1732548646861,-16430.58960433,0.00043,120]
[343294649,1732548733234,151.0,0.0003,120]
[343294657,1732548767395,151.0,0.0003,120]
[343294658,1732548929634,1185.0,0.000154,2]
[343294671,1732549336660,151.0,0.0003,120]
[343294673,1732549584465,2606.99494977,0.00033,60]
[343294674,1732549585499,151.0,0.0003,120]
[343294689,1732549823507,151.0,0.0003,120]
[343294701,1732549831960,-217.72,0.00030685,2]
[343294703,1732549831970,-604.63309651,0.00031087,2]
[343294705,1732549831980,-1048.0,0.00031187,5]
[343294706,1732549831990,-203.609,0.0003124,2]
[343294708,1732549832001,-320.23575,0.0003156,2]
[343294709,1732549832012,-1055.0,0.00032746,5]
[343294710,1732549832022,-167.04,0.00032768,2]
[343294711,1732549832031,-151.0,0.00033342,120]
[343294712,1732549832041,-364.783,0.000345,2]
[343294713,1732549832050,-150.0,0.00034548,10]
[343294714,1732549832060,-2065.99,0.00035546,2]
[343294715,1732549832070,-643.37,0.00036098,2]
[343294716,1732549832080,-150.99,0.00036098,2]
[343294717,1732549832089,-693.488336,0.00036098,2]
[343294718,1732549832099,-150.0,0.00036247,2]
[343294719,1732549832109,-3464.25,0.00036247,10]
[343294720,1732549832118,-217.72,0.0003628,2]
[343294721,1732549832127,-151.0,0.00036658,120]
[343294722,1732549832136,-151.0,0.00036685,120]
[343294723,1732549832147,-150.0,0.00036789,2]
[343294724,1732549832156,-971.26882918,0.00037,120]
[343294725,1732549832166,-500.0,0.00037,120]
[343294726,1732549832176,-66544.0,0.00037034,2]
[343294727,1732549832186,-4205.65,0.00037067,30]
[343294728,1732549832197,-5092.58,0.00037067,2]
[343294729,1732549832207,-250.0,0.00037135,120]
[343294730,1732549832216,-166.39,0.00037135,2]
[343294731,1732549832226,-1557.04,0.00037143,2]
[343294732,1732549832236,-2138.57,0.0003717,120]
[343294733,1732549832246,-289.36,0.00037307,120]